bitfinex/quotes_BTCUSD_20251124
["timestamp","ask_amount","ask_price","bid_price","bid_amount"]
[1764002290239,0.09782652,87396.0,87395.0,0.00014029]
[1764002291108,2.10760917,87396.0,87395.0,0.00014029]
[1764002291330,2.09782652,87396.0,87395.0,0.00014029]
[1764002292242,2.11917242,87396.0,87395.0,0.00014029]
[1764002292453,2.17227491,87396.0,87395.0,0.00014029]
[1764002293490,2.17327491,87396.0,87395.0,0.00014029]
[1764002293885,2.22227491,87396.0,87395.0,0.00014029]
[1764002294049,2.22127491,87396.0,87395.0,0.00014029]
[1764002294251,2.22327491,87396.0,87395.0,0.00014029]
[1764002295131,2.17327491,87396.0,87358.0,0.01487]
[1764002295330,2.17327491,87396.0,87366.0,0.00986252]
[1764002295331,0.09782652,87368.0,87366.0,0.00986252]
[1764002295480,0.09782652,87368.0,87362.0,0.00986252]
[1764002296095,0.09782652,87368.0,87361.0,0.01555]
[1764002296435,0.09782652,87368.0,87358.0,0.00011655]
[1764002296836,0.09782652,87368.0,87358.0,0.00997907]
[1764002297546,2.0,87367.0,87358.0,0.00011655]
[1764002297745,2.05,87367.0,87358.0,0.00011655]
[1764002297958,2.0,87367.0,87358.0,0.00011655]
[1764002298587,0.05210249,87366.0,87358.0,0.00011655]
[1764002298802,2.0,87365.0,87358.0,0.00011655]
[1764002299125,2.0,87364.0,87358.0,0.00011655]
[1764002299351,2.0,87365.0,87358.0,0.00011655]
[1764002300191,0.001,87364.0,87358.0,0.00011655]
[1764002300412,2.0,87363.0,87358.0,0.00011655]
[1764002300818,2.0,87366.0,87358.0,0.00011655]
[1764002301024,2.0,87364.0,87358.0,0.00011655]
[1764002302378,0.001,87365.0,87358.0,0.00011655]
[1764002302379,2.0,87365.0,87358.0,0.00011655]
[1764002302615,0.001,87363.0,87358.0,0.00011655]
[1764002302955,2.0,87362.0,87358.0,0.00011655]
[1764002303168,0.00728,87361.0,87358.0,0.00011655]
[1764002303343,2.0,87360.0,87358.0,0.00011655]
[1764002303784,0.05,87358.0,87332.0,0.00986252]
[1764002303995,0.09782652,87338.0,87332.0,0.01025111]
[1764002304199,0.96453857,87350.0,87333.0,0.01555]
[1764002304200,2.0,87349.0,87333.0,0.01555]
[1764002304404,0.09782652,87337.0,87333.0,0.02541252]
[1764002304604,0.00728,87350.0,87333.0,0.02541252]
[1764002304605,2.0,87349.0,87342.0,0.00986252]
[1764002305196,2.0,87349.0,87345.0,0.00986252]
[1764002305400,0.00728,87350.0,87345.0,0.00986252]
[1764002306232,0.00728,87350.0,87333.0,0.01555]
[1764002306453,0.00728,87350.0,87345.0,0.00986252]
[1764002306664,0.001,87360.0,87349.0,0.03474]
[1764002306808,0.09782652,87352.0,87349.0,0.01555]
[1764002307023,0.09782652,87352.0,87351.0,0.00986252]
[1764002307296,0.00728,87361.0,87351.0,0.02905252]
[1764002307427,0.00728,87361.0,87355.0,0.00986252]
[1764002307632,0.09782652,87354.0,87349.0,0.01555]
[1764002308061,0.09782652,87354.0,87353.0,0.00986252]
[1764002308328,0.09782652,87354.0,87349.0,0.01555]
[1764002308538,0.09782652,87354.0,87346.0,0.00986252]
[1764002308727,0.00728,87361.0,87351.0,0.00986252]
[1764002309294,0.00728,87361.0,87355.0,0.00986252]
[1764002309496,0.00728,87361.0,87347.0,0.02825]
[1764002309704,0.00728,87361.0,87360.0,0.00986252]
[1764002309905,0.00728,87361.0,87349.0,0.00986252]
[1764002310130,0.09782652,87352.0,87346.0,0.01555]
[1764002310329,0.96453857,87360.0,87349.0,0.00986252]
[1764002310548,0.09782652,87354.0,87349.0,0.00986252]
[1764002310998,0.09782652,87354.0,87326.0,0.02825]
[1764002311204,0.09782652,87340.0,87333.0,0.00986252]
[1764002311404,0.09782652,87340.0,87321.0,0.01555]
[1764002311824,0.09782652,87340.0,87328.0,0.00986252]
[1764002312033,2.0,87339.0,87316.0,0.01555]
[1764002312257,0.00728,87338.0,87316.0,0.01555]
[1764002312998,2.0,87336.0,87306.0,0.01555]
[1764002313196,2.0,87337.0,87306.0,0.01555]
[1764002313396,2.0,87337.0,87313.0,0.01555]
[1764002314054,2.0,87337.0,87329.0,0.00357981]
[1764002314462,2.0,87337.0,87329.0,0.00257981]
[1764002314867,2.0,87336.0,87329.0,0.00257981]
[1764002315908,2.0,87334.0,87329.0,0.00257981]
[1764002316107,2.001,87336.0,87329.0,0.00257981]
[1764002316283,2.0,87335.0,87329.0,0.00257981]
[1764002317479,0.001,87336.0,87329.0,0.00257981]
[1764002317480,2.0,87333.0,87329.0,0.00257981]
[1764002317669,2.0,87335.0,87329.0,0.00257981]
[1764002317899,2.0,87333.0,87329.0,0.00257981]
[1764002318306,2.0,87337.0,87329.0,0.00257981]
[1764002318443,2.0,87335.0,87329.0,0.00257981]
[1764002318812,2.0,87333.0,87329.0,0.00257981]
[1764002319012,2.0,87331.0,87329.0,0.00257981]
[1764002319191,0.02135537,87330.0,87329.0,0.00257981]
[1764002319399,2.02135537,87330.0,87329.0,0.00257981]
[1764002319888,0.00728,87338.0,87329.0,0.00257981]
[1764002320122,2.02136477,87337.0,87329.0,0.00257981]
[1764002320328,0.00728,87338.0,87329.0,0.00257981]
[1764002320329,2.0,87335.0,87329.0,0.00257981]
[1764002320541,2.0,87330.0,87329.0,0.00257981]
[1764002320748,2.02136477,87330.0,87329.0,0.00257981]
[1764002322247,0.02136477,87330.0,87329.0,0.00257981]
[1764002322463,0.00728,87330.0,87329.0,0.00257981]
[1764002323114,2.00728,87330.0,87329.0,0.00257981]
[1764002323257,2.02866298,87330.0,87329.0,0.00257981]
[1764002323664,2.14388429,87330.0,87329.0,0.00257981]
[1764002323870,2.02866298,87330.0,87329.0,0.00257981]
[1764002326717,2.02966298,87330.0,87329.0,0.00257981]
[1764002327244,2.03066298,87330.0,87329.0,0.00257981]
[1764002327955,0.03066298,87330.0,87329.0,0.00257981]
[1764002328365,2.03066298,87330.0,87329.0,0.00257981]
[1764002328757,2.02966298,87330.0,87329.0,0.00257981]
[1764002328930,2.02866298,87330.0,87329.0,0.00257981]
[1764002329352,2.08076547,87330.0,87329.0,0.00257981]
[1764002329553,2.08076547,87330.0,87285.0,0.01555]
[1764002329554,0.05210249,87327.0,87285.0,0.01555]
[1764002329752,0.09782652,87302.0,87300.0,0.00078859]
[1764002329999,0.96453857,87310.0,87300.0,0.00078859]
[1764002330195,0.09782652,87302.0,87300.0,0.00078859]
[1764002330430,2.0,87311.0,87309.0,0.00062676]
[1764002330636,0.02140763,87310.0,87309.0,0.00062676]
[1764002330832,0.02140763,87310.0,87300.0,0.00078859]
[1764002330833,0.02140763,87310.0,87306.0,0.00986252]
[1764002331001,0.00728,87312.0,87305.0,0.01415]
[1764002331002,0.02140628,87309.0,87308.0,0.00986252]
[1764002331198,0.00728,87312.0,87308.0,0.00986252]
[1764002331199,2.0,87311.0,87309.0,0.00062676]
[1764002331403,0.02140711,87310.0,87308.0,0.00986252]
[1764002331733,0.02140711,87309.0,87308.0,0.00986252]
[1764002332163,2.0,87315.0,87312.0,0.00986252]
[1764002332387,2.0,87313.0,87305.0,0.00986252]
[1764002332594,0.09782652,87316.0,87300.0,0.00078859]
[1764002332595,2.0,87311.0,87309.0,0.001]
[1764002332799,0.02140602,87310.0,87309.0,0.001]
[1764002332996,0.09782652,87316.0,87312.0,0.00986252]
[1764002333200,0.09782652,87316.0,87315.0,0.00986252]
[1764002333403,0.09782652,87316.0,87310.0,0.01962]
[1764002333404,0.11923477,87316.0,87310.0,0.01962]
[1764002333613,0.09782652,87316.0,87315.0,0.00986252]
[1764002334222,0.57695836,87330.0,87319.0,0.00986252]
[1764002334381,0.09782652,87322.0,87319.0,0.00986252]
[1764002334581,0.50728,87329.0,87320.0,0.00986252]
[1764002334790,0.09782652,87325.0,87324.0,0.00986252]
[1764002334998,0.11923406,87325.0,87324.0,0.00986252]
[1764002335203,0.09782652,87325.0,87324.0,0.00986252]
[1764002335386,0.09782652,87325.0,87319.0,0.01415]
[1764002335837,0.09782652,87325.0,87324.0,0.00986252]
[1764002337240,0.09782652,87325.0,87319.0,0.01415]
[1764002337538,0.09782652,87325.0,87321.0,0.00025067]
[1764002337765,0.09782652,87322.0,87321.0,0.00025067]
[1764002338104,0.00728,87333.0,87321.0,0.00025067]
[1764002338258,0.09782652,87326.0,87322.0,0.00986252]
[1764002338428,2.0,87325.0,87321.0,0.00025067]
[1764002338825,0.02143553,87324.0,87321.0,0.00025067]
[1764002339025,2.0,87323.0,87321.0,0.00025067]
[1764002339444,0.01270398,87340.0,87322.0,0.01962]
[1764002339647,0.09782652,87334.0,87324.0,0.00986252]
[1764002340055,0.0122496,87340.0,87333.0,0.04363252]
[1764002340280,0.57695836,87360.0,87333.0,0.04363252]
[1764002340281,2.0,87351.0,87333.0,0.04363252]
[1764002340479,0.5214462,87350.0,87333.0,0.04363252]
[1764002340742,0.0214462,87349.0,87342.0,0.00986252]
[1764002340948,0.0214462,87349.0,87334.0,0.02885]
[1764002340949,0.57695836,87390.0,87351.0,0.01415]
[1764002341136,0.09782652,87396.0,87351.0,0.01415]
[1764002341137,2.0,87379.0,87363.0,0.00986252]
[1764002341335,2.0,87377.0,87363.0,0.00986252]
[1764002341547,2.0,87375.0,87364.0,0.01415]
[1764002341738,0.02145749,87374.0,87364.0,0.01415]
[1764002341959,0.01226946,87377.0,87364.0,0.01415]
[1764002342187,0.02142984,87376.0,87367.0,0.00986252]
[1764002342376,0.00011647,87382.0,87376.0,0.01962]
[1764002342599,0.00011647,87382.0,87365.0,0.02885]
[1764002342600,0.00011647,87382.0,87381.0,0.01962]
[1764002342760,0.00011647,87382.0,87381.0,0.02948252]
[1764002343102,0.00011647,87382.0,87381.0,0.05833252]
[1764002343742,0.00011647,87382.0,87381.0,0.06561252]
[1764002344146,0.00011647,87382.0,87381.0,0.06661252]
[1764002344376,0.00011647,87382.0,87381.0,0.05933252]
[1764002344581,0.00011647,87382.0,87381.0,0.001]
[1764002344756,0.00011647,87382.0,87381.0,0.002]
[1764002345172,0.00011647,87382.0,87381.0,0.001]
[1764002345988,0.00011647,87382.0,87381.0,0.002]
[1764002346195,0.00011647,87382.0,87381.0,0.001]
[1764002346587,0.00011647,87382.0,87381.0,0.05047]
[1764002346785,0.00011647,87382.0,87381.0,0.02162]
[1764002347007,0.00011647,87382.0,87381.0,0.06033252]
[1764002347786,0.00011647,87382.0,87381.0,0.03148252]
[1764002348560,0.00011647,87382.0,87381.0,0.002]
[1764002348895,0.00011647,87382.0,87381.0,0.05047]
[1764002349094,0.00011647,87382.0,87381.0,0.06033252]
[1764002350127,0.00011647,87382.0,87381.0,0.02162]
[1764002350966,0.00011647,87382.0,87381.0,0.002]
[1764002351944,0.00011647,87382.0,87381.0,0.001]
[1764002353946,0.00011647,87382.0,87361.0,0.01353]
[1764002354134,0.09782652,87372.0,87367.0,0.00986252]
[1764002354363,0.57695836,87380.0,87367.0,0.00986252]
[1764002354493,0.09782652,87373.0,87367.0,0.00986252]
[1764002354697,0.09782652,87373.0,87357.0,0.00986252]
[1764002354896,0.57695836,87370.0,87358.0,0.00728]
[1764002355137,0.09782652,87359.0,87345.0,0.0435]
[1764002355684,0.09782652,87359.0,87351.0,0.02401252]
[1764002356016,0.09782652,87373.0,87355.0,0.00986252]
[1764002356229,0.09782652,87358.0,87357.0,0.00986252]
[1764002356444,0.57695836,87370.0,87351.0,0.01415]
[1764002356647,0.09782652,87373.0,87360.0,0.01956]
[1764002356864,2.0,87372.0,87367.0,0.00986252]
[1764002357458,2.0,87372.0,87361.0,0.01353]
[1764002357683,0.09782652,87373.0,87339.0,0.01353]
[1764002357684,2.0,87370.0,87339.0,0.01353]
[1764002357875,0.57695836,87350.0,87339.0,0.01353]
[1764002358304,0.57695836,87350.0,87343.0,0.00986252]
[1764002358508,0.57695836,87360.0,87347.0,0.00986252]
[1764002358714,2.0,87353.0,87347.0,0.00986252]
[1764002358931,2.0,87353.0,87341.0,0.00986252]
[1764002359145,2.0,87353.0,87346.0,0.00986252]
[1764002359572,2.0,87353.0,87347.0,0.01353]
[1764002360205,1.7950161,87353.0,87347.0,0.01353]
[1764002360407,0.09782652,87354.0,87347.0,0.01353]
[1764002360609,0.09782652,87359.0,87350.0,0.00986252]
[1764002360814,0.09794295,87359.0,87350.0,0.00986252]
[1764002362051,0.09794295,87359.0,87339.0,0.01353]
[1764002362262,0.57695836,87350.0,87339.0,0.02081]
[1764002362462,0.00011643,87359.0,87340.0,0.02935]
[1764002362696,0.00011643,87359.0,87358.0,0.03309]
[1764002362829,0.00011643,87359.0,87358.0,0.01353]
[1764002363477,0.00011643,87359.0,87358.0,0.02339252]
[1764002363718,0.00011643,87359.0,87358.0,0.07230252]
[1764002367199,0.00011643,87359.0,87358.0,0.07330252]
[1764002367398,0.00011643,87359.0,87358.0,0.07530252]
[1764002368221,0.04125203,87373.0,87358.0,0.03609]
[1764002368423,0.04134095,87373.0,87367.0,0.00986252]
[1764002368851,8.892e-05,87373.0,87372.0,0.02942252]
[1764002369061,8.892e-05,87373.0,87372.0,0.05877252]
[1764002370084,8.892e-05,87373.0,87372.0,0.05977252]
[1764002370286,8.892e-05,87373.0,87372.0,0.05877252]
[1764002370853,8.892e-05,87373.0,87372.0,0.05977252]
[1764002371066,8.892e-05,87373.0,87372.0,0.05877252]
[1764002371485,8.892e-05,87373.0,87372.0,0.05977252]
[1764002371686,8.892e-05,87373.0,87372.0,0.001]
[1764002372275,8.892e-05,87373.0,87372.0,0.002]
[1764002372479,8.892e-05,87373.0,87372.0,0.03142252]
[1764002372697,8.892e-05,87373.0,87372.0,0.03042252]
[1764002372930,8.892e-05,87373.0,87372.0,0.02942252]
[1764002374824,8.892e-05,87373.0,87372.0,0.05877252]
[1764002375443,8.892e-05,87373.0,87372.0,0.02942252]
[1764002376165,8.892e-05,87373.0,87369.0,0.00728]
[1764002376595,8.892e-05,87373.0,87372.0,0.00986252]
[1764002377565,8.892e-05,87373.0,87364.0,0.00728]
[1764002377789,0.09782652,87371.0,87364.0,0.00728]
[1764002377991,8.892e-05,87373.0,87369.0,0.00986252]
[1764002378591,8.892e-05,87373.0,87366.0,0.00728]
[1764002379163,8.892e-05,87373.0,87372.0,0.00986252]
[1764002379360,8.892e-05,87373.0,87372.0,0.02942252]
[1764002379763,8.892e-05,87373.0,87372.0,0.05877252]
[1764002380801,8.892e-05,87373.0,87372.0,0.05977252]
[1764002381259,8.892e-05,87373.0,87372.0,0.03042252]
[1764002381963,8.892e-05,87373.0,87372.0,0.02942252]
[1764002382196,8.892e-05,87373.0,87372.0,0.03042252]
[1764002382370,8.892e-05,87373.0,87372.0,0.03142252]
[1764002382615,8.892e-05,87373.0,87372.0,0.03042252]
[1764002382824,8.892e-05,87373.0,87372.0,0.02942252]
[1764002382973,8.892e-05,87373.0,87372.0,0.05877252]
[1764002383788,8.892e-05,87373.0,87372.0,0.02942252]
[1764002383968,8.892e-05,87373.0,87372.0,0.01956]
[1764002384331,8.892e-05,87373.0,87372.0,0.02942252]
[1764002384614,8.892e-05,87373.0,87372.0,0.03042252]
[1764002385878,8.892e-05,87373.0,87372.0,0.001]
[1764002386084,2.00008892,87373.0,87372.0,0.001]
[1764002386712,2.0,87372.0,87357.0,0.00986252]
[1764002386931,0.09782652,87361.0,87357.0,0.00986252]
[1764002387139,0.09782652,87369.0,87363.0,0.00986252]
[1764002387347,0.09782652,87369.0,87364.0,0.00986252]
[1764002387554,0.09782652,87369.0,87368.0,0.02854252]
[1764002387958,8.892e-05,87373.0,87372.0,0.00986252]
[1764002388163,8.892e-05,87373.0,87354.0,0.02784]
[1764002388349,0.09782652,87367.0,87361.0,0.00986252]
[1764002388548,0.09782652,87367.0,87364.0,0.00986252]
[1764002388894,0.09782652,87367.0,87362.0,0.00986252]
[1764002389546,0.09782652,87367.0,87352.0,0.00728]
[1764002389547,2.0,87366.0,87344.0,0.00986252]
[1764002389846,0.57695836,87360.0,87347.0,0.00728]
[1764002390054,0.57695836,87360.0,87351.0,0.00986252]
[1764002390267,0.09782652,87367.0,87351.0,0.00986252]
[1764002390446,2.0,87366.0,87354.0,0.00986252]
[1764002390649,2.002,87366.0,87354.0,0.00986252]
[1764002390947,2.0,87365.0,87354.0,0.00986252]
[1764002391150,2.0,87365.0,87359.0,0.00986252]
[1764002391349,2.0,87365.0,87355.0,0.00986252]
[1764002391719,2.0,87365.0,87364.0,0.00986252]
[1764002391847,0.09782652,87367.0,87347.0,0.02784]
[1764002391848,0.09782652,87367.0,87365.0,0.00986252]
[1764002392031,0.09782652,87367.0,87364.0,0.01868]
[1764002392239,0.09782652,87367.0,87354.0,0.02784]
[1764002392436,0.09782652,87367.0,87366.0,0.00986252]
[1764002393122,8.892e-05,87373.0,87366.0,0.00986252]
[1764002393324,8.892e-05,87373.0,87372.0,0.01868]
[1764002393673,8.892e-05,87373.0,87372.0,0.00986252]
[1764002393875,8.892e-05,87373.0,87361.0,0.00728]
[1764002394078,0.09782652,87372.0,87371.0,0.00986252]
[1764002394277,0.09782652,87372.0,87361.0,0.00728]
[1764002394278,8.892e-05,87373.0,87372.0,0.02854252]
[1764002394832,8.892e-05,87373.0,87372.0,0.00986252]
[1764002395256,8.892e-05,87373.0,87362.0,0.02784]
[1764002395484,8.892e-05,87373.0,87369.0,0.00986252]
[1764002395666,8.892e-05,87373.0,87372.0,0.00986252]
[1764002395824,8.892e-05,87373.0,87372.0,0.02854252]
[1764002398766,8.892e-05,87373.0,87372.0,0.02954252]
[1764002398965,8.892e-05,87373.0,87372.0,0.05738252]
[1764002400504,0.00254754,87395.0,87394.0,0.00986252]
[1764002400714,0.00254754,87395.0,87394.0,0.04272252]
[1764002401136,0.00254754,87395.0,87375.0,0.01144492]
[1764002401137,0.00254754,87395.0,87380.0,0.01418]
[1764002401356,0.09782652,87391.0,87385.0,0.00986252]
[1764002401578,0.09782652,87391.0,87373.0,0.01418]
[1764002401579,0.09782652,87391.0,87379.0,0.00728]
[1764002402004,0.09782652,87391.0,87384.0,0.00986252]
[1764002402415,0.09782652,87391.0,87379.0,0.00728]
[1764002402635,0.09782652,87391.0,87373.0,0.01418]
[1764002402636,0.96565778,87390.0,87373.0,0.01418]
[1764002403077,0.96565778,87390.0,87377.0,0.00986252]
[1764002403277,0.96565778,87390.0,87348.0,0.05210249]
[1764002403499,0.09782652,87377.0,87365.0,0.00986252]
[1764002403725,0.09782652,87377.0,87371.0,0.00986252]
[1764002404854,0.96565778,87390.0,87371.0,0.00986252]
[1764002405055,0.96565778,87390.0,87360.0,0.0262409]
[1764002405056,0.09782652,87389.0,87376.0,0.04272252]
[1764002405236,0.09782652,87388.0,87386.0,0.00986252]
[1764002405655,0.09782652,87388.0,87376.0,0.01418]
[1764002405859,0.09782652,87388.0,87386.0,0.00986252]
[1764002406059,0.09782652,87388.0,87387.0,0.02404252]
[1764002406273,0.09782652,87388.0,87387.0,0.04272252]
[1764002406685,0.001,87390.0,87387.0,0.0607]
[1764002406887,0.001,87390.0,87389.0,0.02854252]
[1764002407110,0.00254754,87395.0,87389.0,0.02854252]
[1764002407310,0.00254754,87395.0,87394.0,0.02854252]
[1764002407737,0.00254754,87395.0,87394.0,0.05638252]
[1764002408472,0.00254754,87395.0,87394.0,0.02854252]
[1764002409434,0.00254754,87395.0,87394.0,0.05638252]
[1764002411461,0.00254754,87395.0,87394.0,0.05738252]
[1764002411693,0.00254754,87395.0,87394.0,0.05838252]
[1764002412184,0.00254754,87395.0,87394.0,0.05738252]
[1764002412354,0.00254754,87395.0,87394.0,0.06466252]
[1764002412765,0.00254754,87395.0,87394.0,0.05738252]
[1764002412943,0.00254754,87395.0,87394.0,0.06466252]
[1764002413706,0.00254754,87395.0,87394.0,0.06566252]
[1764002414051,0.00254754,87395.0,87394.0,0.05838252]
[1764002414248,0.00254754,87395.0,87394.0,0.06566252]
[1764002415181,0.00254754,87395.0,87394.0,0.29451118]
[1764002415800,0.00254754,87395.0,87394.0,0.34661367]
[1764002416224,0.00254754,87395.0,87394.0,0.74661367]
[1764002416600,0.00254754,87395.0,87394.0,0.74461367]
[1764002417047,0.00254754,87395.0,87394.0,0.74761367]
[1764002418311,0.0004,87410.0,87394.0,0.74761367]
[1764002418456,0.55265537,87406.0,87405.0,0.27139238]
[1764002418657,0.55265537,87406.0,87405.0,0.30649238]
[1764002419021,0.55265537,87406.0,87405.0,0.35859487]
[1764002419428,0.54835537,87406.0,87405.0,0.35859487]
[1764002420525,0.54835537,87406.0,87405.0,0.36059487]
[1764002420756,0.54835537,87406.0,87405.0,0.36259487]
[1764002422435,0.54835537,87406.0,87405.0,0.76259487]
[1764002423367,0.54835537,87406.0,87405.0,0.53377501]
[1764002423683,0.54835537,87406.0,87405.0,0.76259487]
[1764002424206,0.54835537,87406.0,87405.0,0.52649501]
[1764002424407,0.54869955,87406.0,87405.0,0.76259487]
[1764002424626,0.54869955,87406.0,87405.0,0.52649501]
[1764002424832,0.54869955,87406.0,87405.0,0.07439252]
[1764002425037,0.54869955,87406.0,87405.0,0.08167252]
[1764002425241,0.54869955,87406.0,87405.0,0.07439252]
[1764002425514,0.54869955,87406.0,87405.0,0.07967252]
[1764002425727,0.54869955,87406.0,87405.0,0.07239252]
[1764002425914,0.54869955,87406.0,87405.0,0.003]
[1764002426339,0.54869955,87406.0,87403.0,0.00986252]
[1764002426541,0.54835537,87406.0,87405.0,0.002]
[1764002426953,0.54835537,87406.0,87403.0,0.01383]
[1764002427185,0.54835537,87406.0,87399.0,0.00728]
[1764002427372,0.54835537,87406.0,87405.0,0.01383]
[1764002427572,0.54835537,87406.0,87405.0,0.02369252]
[1764002427998,0.54869955,87406.0,87405.0,0.00986252]
[1764002429142,0.54869955,87406.0,87400.0,0.00986252]
[1764002429343,0.09782652,87401.0,87391.0,0.00728]
[1764002429517,0.54835537,87406.0,87394.0,0.00986252]
[1764002429518,0.09782652,87405.0,87394.0,0.00986252]
[1764002429756,0.96565778,87404.0,87394.0,0.00986252]
[1764002430175,0.96565778,87404.0,87397.0,0.00986252]
[1764002430819,0.54835537,87406.0,87403.0,0.03271]
[1764002431047,0.54835537,87406.0,87405.0,0.02874252]
[1764002431255,0.54835537,87406.0,87405.0,0.00986252]
[1764002431469,0.54835537,87406.0,87380.0,0.02782]
[1764002431705,0.09782652,87396.0,87388.0,0.00728]
[1764002431944,0.09782652,87396.0,87389.0,0.00986252]
[1764002432148,0.09743527,87396.0,87389.0,0.00986252]
[1764002432355,0.09743527,87396.0,87391.0,0.00986252]
[1764002432580,0.09743527,87396.0,87380.0,0.02782]
[1764002432795,0.09743527,87396.0,87389.0,0.00986252]
[1764002433043,0.54835537,87406.0,87385.0,0.00728]
[1764002433213,0.09782652,87401.0,87395.0,0.01888]
[1764002433419,0.09782652,87401.0,87399.0,0.00986252]
[1764002434154,0.09782652,87401.0,87400.0,0.00986252]
[1764002434310,0.09782652,87405.0,87403.0,0.00986252]
[1764002434508,0.09782652,87405.0,87402.0,0.00986252]
[1764002434713,0.00025032,87403.0,87390.0,0.00986252]
[1764002434889,0.00025032,87403.0,87393.0,0.00986252]
[1764002434890,0.96565778,87400.0,87393.0,0.00986252]
[1764002435089,0.96565778,87400.0,87386.0,0.00728]
[1764002435090,0.00025032,87403.0,87396.0,0.00986252]
[1764002435295,0.00025032,87403.0,87398.0,0.00986252]
[1764002435515,0.00025032,87403.0,87387.0,0.01418]
[1764002435868,0.00025032,87403.0,87387.0,0.02404252]
[1764002436291,0.00025032,87403.0,87373.0,0.01418]
[1764002436292,0.09782652,87391.0,87373.0,0.01418]
[1764002436490,0.96565778,87400.0,87383.0,0.00728]
[1764002436699,0.09782652,87391.0,87377.0,0.02782]
[1764002436908,0.09782652,87391.0,87378.0,0.00986252]
[1764002437105,0.96565778,87390.0,87374.0,0.00728]
[1764002437307,0.96565778,87380.0,87374.0,0.00728]
[1764002437532,0.96565778,87390.0,87372.0,0.00986252]
[1764002438820,0.96565778,87390.0,87376.0,0.00986252]
[1764002439036,0.09782652,87391.0,87387.0,0.00986252]
[1764002439250,0.09782652,87391.0,87390.0,0.02369252]
[1764002439457,2.0,87402.0,87390.0,0.03271]
[1764002439657,0.00025032,87403.0,87399.0,0.00986252]
[1764002440084,0.00025032,87403.0,87402.0,0.00986252]
[1764002440515,0.00025032,87403.0,87393.0,0.02782]
[1764002440720,0.00025032,87403.0,87402.0,0.05656252]
[1764002441570,0.35463047,87406.0,87405.0,0.00986252]
[1764002441787,0.35463047,87406.0,87405.0,0.02874252]
[1764002441986,0.35463047,87406.0,87405.0,0.05656252]
[1764002442850,0.35463047,87406.0,87405.0,0.02874252]
[1764002443052,0.67763047,87406.0,87405.0,0.02874252]
[1764002443282,0.67763047,87406.0,87404.0,0.00728]
[1764002443656,0.67763047,87406.0,87404.0,0.01714252]
[1764002444231,0.67763047,87406.0,87405.0,0.00986252]
[1764002445512,0.67763047,87406.0,87404.0,0.00728]
[1764002445932,0.09782652,87405.0,87401.0,0.00986252]
[1764002446133,0.42082652,87405.0,87401.0,0.00986252]
[1764002446788,0.323,87405.0,87401.0,0.00986252]
[1764002447781,0.323,87405.0,87404.0,0.02753252]
[1764002447981,0.323,87405.0,87404.0,0.00986252]
[1764002448206,0.323,87405.0,87404.0,0.02753252]
[1764002448408,0.323,87405.0,87403.0,0.01295]
[1764002448748,0.323,87405.0,87404.0,0.00986252]
[1764002448948,0.323,87405.0,87403.0,0.01295]
[1764002449229,0.323,87405.0,87404.0,0.00986252]
[1764002449448,0.323,87405.0,87404.0,0.02753252]
[1764002450021,0.323,87405.0,87404.0,0.05468252]
[1764002450222,0.323,87405.0,87403.0,0.01295]
[1764002450421,0.323,87405.0,87404.0,0.00986252]
[1764002451469,0.323,87405.0,87404.0,0.05468252]
[1764002452003,0.323,87405.0,87404.0,0.00986252]
[1764002452720,0.323,87405.0,87395.0,0.00728]
[1764002453321,0.323,87405.0,87404.0,0.00986252]
[1764002454566,0.323,87405.0,87400.0,0.01295]
[1764002454739,0.323,87405.0,87401.0,0.02715]
[1764002454938,0.323,87405.0,87404.0,0.00986252]
[1764002456394,0.323,87405.0,87404.0,0.02753252]
[1764002456597,0.323,87405.0,87404.0,0.05468252]
[1764002457138,0.323,87405.0,87404.0,0.02753252]
[1764002457338,0.323,87405.0,87404.0,0.05468252]
[1764002459129,0.323,87405.0,87404.0,0.02753252]
[1764002460894,0.323,87405.0,87390.0,0.04098]
[1764002461102,0.57556583,87400.0,87385.0,0.00986252]
[1764002461318,0.57556583,87400.0,87359.0,0.15487671]
[1764002461319,0.09782652,87391.0,87379.0,0.00986252]
[1764002461546,0.09782652,87391.0,87352.0,0.01295]
[1764002461547,0.05210249,87389.0,87352.0,0.01295]
[1764002461759,0.57556583,87362.0,87353.0,0.00728]
[1764002462208,0.57556583,87362.0,87355.0,0.00986252]
[1764002462423,0.01224715,87362.0,87361.0,0.01767]
[1764002462644,0.01214309,87366.0,87361.0,0.01767]
[1764002462857,0.01214309,87366.0,87360.0,0.00986252]
[1764002463075,0.57556583,87371.0,87361.0,8.892e-05]
[1764002463311,0.01233065,87366.0,87361.0,8.892e-05]
[1764002463523,0.57556583,87371.0,87361.0,8.892e-05]
[1764002463729,0.58765083,87371.0,87361.0,8.892e-05]
[1764002463947,0.58765083,87371.0,87364.0,0.00986252]
[1764002465228,0.58765083,87371.0,87361.0,8.892e-05]
[1764002466094,0.58765083,87371.0,87363.0,0.00986252]
[1764002467127,0.58765083,87371.0,87364.0,0.02715]
[1764002467128,0.012085,87371.0,87364.0,0.02715]
[1764002467331,0.012085,87371.0,87370.0,0.02753252]
[1764002467535,2.0,87379.0,87377.0,0.00986252]
[1764002468385,0.01215901,87379.0,87377.0,0.00986252]
[1764002468635,0.01215901,87379.0,87378.0,0.00986252]
[1764002468848,0.001,87379.0,87378.0,0.02753252]
[1764002469518,0.001,87379.0,87378.0,0.05468252]
[1764002469976,0.57556583,87390.0,87378.0,0.04482]
[1764002470176,0.57556583,87390.0,87389.0,0.00986252]
[1764002470351,0.57556583,87399.0,87378.0,0.04482]
[1764002470584,0.00728,87404.0,87390.0,0.00986252]
[1764002470797,0.01188474,87391.0,87378.0,0.01767]
[1764002471046,0.09782652,87390.0,87378.0,0.01767]
[1764002471245,0.09782652,87390.0,87378.0,0.02753252]
[1764002471846,0.67339235,87390.0,87387.0,0.00986252]
[1764002472059,0.09782652,87390.0,87387.0,0.00986252]
[1764002472305,2.0,87396.0,87389.0,0.01295]
[1764002472734,2.0,87396.0,87387.0,0.00986252]
[1764002472735,0.09782652,87391.0,87387.0,0.00986252]
[1764002473653,0.01217898,87391.0,87384.0,0.01295]
[1764002473890,0.01217898,87391.0,87390.0,0.02723252]
[1764002474112,2.0,87396.0,87395.0,0.00986252]
[1764002474369,2.0,87403.0,87395.0,0.00986252]
[1764002474584,2.0001165,87403.0,87395.0,0.00986252]
[1764002474802,2.0,87402.0,87395.0,0.00986252]
[1764002475218,2.0,87402.0,87384.0,0.01295]
[1764002475426,0.09782652,87389.0,87381.0,0.01714252]
[1764002475645,0.57556583,87394.0,87387.0,0.00986252]
[1764002475862,0.09782652,87391.0,87387.0,0.00986252]
[1764002476115,0.09782652,87391.0,87387.0,0.02219252]